[Event "CAN-op"]
[Site "Ottawa CAN"]
[Date "2026.07.12"]
[Round "3.4"]
[White "Jaferian, Koosha"]
[Black "Stremavicius, Titas"]
[Result "1-0"]
[ECO "C18"]
[WhiteElo "2249"]
[BlackElo "2555"]
[WhiteFideId "-1"]
[BlackFideId "-1"]
[PlyCount "103"]
[GameId "2332995607068219"]
[EventDate "2026.07.11"]
[EventType "swiss"]
[EventRounds "9"]
[EventCountry "CAN"]
[TimeControl "5400+30"]
[WhiteClock "0:06:44"]
[BlackClock "0:00:40"]

1. e4 {[%emt 0:00:01.94]} e6 {[%emt 0:02:04.94]} 2. d4 {[%emt 0:00:08]} d5 {[%emt 0:00:03]} 3. Nc3 {[%emt 0:00:08]} Bb4 {[%emt 0:00:17]} 4. e5 {[%emt 0:00:07]} c5 {[%emt 0:00:04]} 5. a3 {[%emt 0:00:06]} Ba5 {[%emt 0:00:04]} 6. Qg4 {[%emt 0:00:54]} Ne7 {[%emt 0:01:42]} 7. dxc5 {[%emt 0:00:29]} Bxc3+ {[%emt 0:00:05]} 8. bxc3 {[%emt 0:00:08]} O-O {[%emt 0:00:24]} 9. Bd3 {[%emt 0:01:39]} Nd7 {[%emt 0:03:27]} 10. Nf3 {[%emt 0:00:23]} Nf5 {[%emt 0:00:06]} 11. a4 {[%emt 0:02:16]} Nxc5 {[%emt 0:01:18]} 12. Ba3 {[%emt 0:00:17]} b6 {[%emt 0:02:27]} 13. O-O {[%emt 0:02:56]} Bd7 {[%emt 0:28:36.10]} 14. Nd4 {[%emt 0:17:27]} Rc8 {[%emt 0:23:46]} 15. Nxf5 {[%emt 0:07:50]} exf5 {[%emt 0:00:08]} 16. Bxf5 {[%emt 0:00:08]} Bxf5 {[%emt 0:00:04]} 17. Qxf5 {[%emt 0:00:08]} Re8 {[%emt 0:00:07]} 18. Bxc5 {[%emt 0:04:11]} Rxc5 {[%emt 0:00:09]} 19. Rfe1 {[%emt 0:05:33.10]} g6 {[%emt 0:08:04]} 20. Qd3 {[%emt 0:04:07]} Qc7 {[%emt 0:00:15]} 21. Qd4 {[%emt 0:02:04]} Rxc3 {[%emt 0:01:16]} 22. Qxd5 {[%emt 0:00:09]} Rc5 {[%emt 0:04:40]} 23. Qd4 {[%emt 0:09:04]} Rcxe5 {[%emt 0:01:24]} 24. Rxe5 {[%emt 0:01:04]} Qxe5 {[%emt 0:00:52]} 25. Qxe5 {[%emt 0:10:42]} Rxe5 {[%emt 0:00:06]} 26. f4 {[%emt 0:01:34]} Rc5 {[%emt 0:06:14]} 27. Ra2 {[%emt 0:00:20]} Kg7 {[%emt 0:04:00]} 28. Kf2 {[%emt 0:00:46]} h5 {[%emt 0:00:09]} 29. Ke3 {[%emt 0:01:03]} Kf6 {[%emt 0:00:05]} 30. Kd4 {[%emt 0:02:30]} Kf5 {[%emt 0:03:43]} 31. c4 {[%emt 0:01:32]} Ra5 {[%emt 0:01:22]} 32. g3 {[%emt 0:01:28]} Kg4 {[%emt 0:01:47]} 33. Ke4 {[%emt 0:09:31]} Kh3 {[%emt 0:00:44]} 34. Kf3 {[%emt 0:01:46]} Rc5 {[%emt 0:00:23]} 35. Rc2 {[%emt 0:00:13]} Ra5 {[%emt 0:00:04]} 36. Ra2 {[%emt 0:00:07]} Rc5 {[%emt 0:00:08]} 37. Rc2 {[%emt 0:00:05]} a6 {[%emt 0:01:32]} 38. Rb2 {[%emt 0:03:54]} Rc6 {[%emt 0:04:16]} 39. a5 {[%emt 0:01:34]} bxa5 {[%emt 0:00:05]} 40. Rc2 {[%emt 0:00:12]} a4 {[%emt 0:03:10]} 41. Ke4 {[%emt 0:00:34]} a3 {[%emt 0:00:33]} 42. Kd5 {[%emt 0:00:31]} Rb6 {[%emt 0:00:04]} 43. Ra2 {[%emt 0:01:17]} Rb2 {[%emt 0:01:30]} 44. Rxa3 {[%emt 0:00:01]} Rd2+ {[%emt 0:00:38]} 45. Kc6 {[%emt 0:04:12]} Rc2 {[%emt 0:00:32]} 46. c5 {[%emt 0:00:06]} Kxh2 {[%emt 0:00:16]} 47. Kb6 {[%emt 0:01:05]} f6 {[%emt 0:00:31]} 48. c6 {[%emt 0:00:34]} Rb2+ {[%emt 0:00:12]} 49. Kxa6 {[%emt 0:00:13]} Rc2 {[%emt 0:00:03]} 50. Kb7 {[%emt 0:00:22]} Rb2+ {[%emt 0:00:03]} 51. Kc8 {[%emt 0:00:34]} g5 {[%emt 0:01:47]} 52. Rc3 {[%emt 0:01:42]} 1-0

[Event "CAN-op"]
[Site "Ottawa CAN"]
[Date "2026.07.12"]
[Round "3.5"]
[White "Sambuev, Bator"]
[Black "Qian, Ashley"]
[Result "1/2-1/2"]
[ECO "D41"]
[WhiteElo "2420"]
[BlackElo "1983"]
[WhiteFideId "-1"]
[BlackFideId "-1"]
[PlyCount "111"]
[GameId "2332995607072316"]
[EventDate "2026.07.11"]
[EventType "swiss"]
[EventRounds "9"]
[EventCountry "CAN"]
[TimeControl "5400+30"]
[WhiteClock "0:05:00"]
[BlackClock "0:01:55"]

1. d4 {[%emt 0:00:08.94]} d5 {[%emt 0:01:15.94]} 2. c4 {[%emt 0:00:07]} e6 {[%emt 0:00:07]} 3. Nc3 {[%emt 0:00:04]} Nf6 {[%emt 0:00:15]} 4. cxd5 {[%emt 0:00:04]} Nxd5 {[%emt 0:00:56]} 5. Nf3 {[%emt 0:00:42]} c5 {[%emt 0:07:52]} 6. e3 {[%emt 0:00:06]} Nxc3 {[%emt 0:06:13]} 7. bxc3 {[%emt 0:00:05]} Be7 {[%emt 0:02:54]} 8. Bd3 {[%emt 0:01:36]} Nd7 {[%emt 0:02:55]} 9. O-O {[%emt 0:00:29]} O-O {[%emt 0:00:54]} 10. e4 {[%emt 0:02:06]} b6 {[%emt 0:13:12.10]} 11. Bf4 {[%emt 0:01:06]} Bb7 {[%emt 0:00:50]} 12. Qe2 {[%emt 0:02:08]} Rc8 {[%emt 0:04:49]} 13. Rad1 {[%emt 0:01:50]} cxd4 {[%emt 0:02:20]} 14. cxd4 {[%emt 0:00:10]} h6 {[%emt 0:02:37]} 15. d5 {[%emt 0:11:54]} exd5 {[%emt 0:11:10]} 16. exd5 {[%emt 0:00:16]} Re8 {[%emt 0:00:14]} 17. Rfe1 {[%emt 0:00:58]} Bc5 {[%emt 0:06:39]} 18. Qe5 {[%emt 0:07:23]} Re7 {[%emt 0:00:30]} 19. Qxe7 {[%emt 0:00:01]} Qxe7 {[%emt 0:00:15]} 20. Rxe7 {[%emt 0:00:03]} Rd8 {[%emt 0:00:46]} 21. Re8+ {[%emt 0:00:30]} Rxe8 {[%emt 0:00:00]} 22. Bb5 {[%emt 0:00:33]} Bc8 {[%emt 0:04:00]} 23. Kf1 {[%emt 0:03:58]} Kf8 {[%emt 0:03:30]} 24. Bc7 {[%emt 0:03:21]} Re4 {[%emt 0:03:30]} 25. a4 {[%emt 0:04:19.10]} g5 {[%emt 0:04:58]} 26. h3 {[%emt 0:04:08]} Kg7 {[%emt 0:02:13]} 27. d6 {[%emt 0:06:02]} Kf6 {[%emt 0:04:04]} 28. Bc6 {[%emt 0:03:22]} Rc4 {[%emt 0:07:07]} 29. Nd2 {[%emt 0:02:04]} Rd4 {[%emt 0:02:54]} 30. Ne4+ {[%emt 0:00:08]} Kg7 {[%emt 0:00:13]} 31. Rc1 {[%emt 0:09:45]} Kf8 {[%emt 0:02:28]} 32. Nxc5 {[%emt 0:02:13]} Nxc5 {[%emt 0:00:11]} 33. a5 {[%emt 0:04:07]} Ne6 {[%emt 0:02:15]} 34. Bb5 {[%emt 0:06:23]} Rd5 {[%emt 0:01:57]} 35. Bxb6 {[%emt 0:02:42]} Rxb5 {[%emt 0:00:47]} 36. Rxc8+ {[%emt 0:00:07]} Kg7 {[%emt 0:00:04]} 37. Bc7 {[%emt 0:01:13]} Nxc7 {[%emt 0:01:23]} 38. dxc7 {[%emt 0:00:06]} Rc5 {[%emt 0:00:09]} 39. Ke2 {[%emt 0:00:34]} Kf6 {[%emt 0:00:05]} 40. g4 {[%emt 0:02:12]} Ke7 {[%emt 0:00:22]} 41. a6 {[%emt 0:01:25]} Rc6 {[%emt 0:01:11]} 42. Rh8 {[%emt 0:00:55]} Rxc7 {[%emt 0:00:08]} 43. Rxh6 {[%emt 0:00:03]} Rc3 {[%emt 0:00:44]} 44. h4 {[%emt 0:06:24]} gxh4 {[%emt 0:00:24]} 45. g5 {[%emt 0:04:33]} h3 {[%emt 0:00:33]} 46. f4 {[%emt 0:01:13]} h2 {[%emt 0:00:51]} 47. Kf2 {[%emt 0:00:09]} Rc2+ {[%emt 0:00:23]} 48. Kg3 {[%emt 0:00:30]} Ra2 {[%emt 0:00:06]} 49. f5 {[%emt 0:00:38]} Ra5 {[%emt 0:01:06]} 50. Rxh2 {[%emt 0:07:49]} Rxf5 {[%emt 0:00:18]} 51. Rb2 {[%emt 0:00:02]} Rxg5+ {[%emt 0:00:18]} 52. Kf4 {[%emt 0:00:02]} Ra5 {[%emt 0:00:17]} 53. Rb7+ {[%emt 0:00:04]} Kd6 {[%emt 0:00:35]} 54. Rxa7 {[%emt 0:00:04]} Kc6 {[%emt 0:00:12]} 55. Rxf7 {[%emt 0:00:05]} Rxa6 {[%emt 0:00:05]} 56. Ke4 {[%emt 0:00:42]} 1/2-1/2

[Event "CAN-op"]
[Site "Ottawa CAN"]
[Date "2026.07.12"]
[Round "3.6"]
[White "Dukic, Zachary"]
[Black "Golubka, Petro"]
[Result "0-1"]
[ECO "A05"]
[WhiteElo "2204"]
[BlackElo "2355"]
[WhiteFideId "-1"]
[BlackFideId "-1"]
[PlyCount "42"]
[GameId "2332995607076413"]
[EventDate "2026.07.11"]
[EventType "swiss"]
[EventRounds "9"]
[EventCountry "CAN"]
[TimeControl "5400+30"]
[WhiteClock "0:23:23"]
[BlackClock "0:53:23"]

1. Nf3 {[%emt 0:00:00.94]} Nf6 {[%emt 0:11:13.94]} 2. g3 {[%emt 0:00:11]} b5 {[%emt 0:00:05]} 3. Bg2 {[%emt 0:00:09]} Bb7 {[%emt 0:00:07]} 4. O-O {[%emt 0:00:08]} e6 {[%emt 0:00:10]} 5. d3 {[%emt 0:00:06]} a6 {[%emt 0:00:56]} 6. e4 {[%emt 0:00:20]} d6 {[%emt 0:00:18]} 7. Nbd2 {[%emt 0:11:27]} c5 {[%emt 0:00:38]} 8. Qe2 {[%emt 0:03:54]} Be7 {[%emt 0:02:27]} 9. d4 {[%emt 0:05:04]} cxd4 {[%emt 0:00:23]} 10. Nxd4 {[%emt 0:00:10]} Nc6 {[%emt 0:00:29]} 11. Nxc6 {[%emt 0:06:01]} Bxc6 {[%emt 0:00:02]} 12. b3 {[%emt 0:01:52]} O-O {[%emt 0:02:51]} 13. Bb2 {[%emt 0:05:00]} Qb6 {[%emt 0:02:36]} 14. Kh1 {[%emt 0:08:09.10]} a5 {[%emt 0:02:39]} 15. a3 {[%emt 0:12:34]} Rfd8 {[%emt 0:07:36]} 16. f4 {[%emt 0:01:01]} Rac8 {[%emt 0:07:12.10]} 17. g4 {[%emt 0:02:12]} d5 {[%emt 0:01:06]} 18. e5 {[%emt 0:09:10]} Ne4 {[%emt 0:01:24]} 19. f5 {[%emt 0:01:28]} Bg5 {[%emt 0:03:20]} 20. Nf3 {[%emt 0:04:36]} Be3 {[%emt 0:04:53]} 21. Rad1 {[%emt 0:04:04]} d4 {[%emt 0:00:00]} 0-1

[Event "CAN-op"]
[Site "Ottawa CAN"]
[Date "2026.07.12"]
[Round "3.7"]
[White "Marchand, Calix"]
[Black "Preotu, Razvan"]
[Result "0-1"]
[ECO "B06"]
[WhiteElo "2181"]
[BlackElo "2482"]
[WhiteFideId "-1"]
[BlackFideId "-1"]
[PlyCount "88"]
[GameId "2332995607080510"]
[EventDate "2026.07.11"]
[EventType "swiss"]
[EventRounds "9"]
[EventCountry "CAN"]
[TimeControl "5400+30"]
[WhiteClock "0:00:32"]
[BlackClock "0:05:41"]

1. e4 {[%emt 0:00:19.94]} c5 {[%emt 0:01:49.94]} 2. c3 {[%emt 0:00:46]} d5 {[%emt 0:01:12]} 3. exd5 {[%emt 0:00:12]} Qxd5 {[%emt 0:00:54]} 4. d4 {[%emt 0:00:33]} g6 {[%emt 0:00:20]} 5. Nf3 {[%emt 0:02:18]} Bg7 {[%emt 0:01:53]} 6. Nbd2 {[%emt 0:02:44]} cxd4 {[%emt 0:01:04]} 7. Bc4 {[%emt 0:00:17]} Qd8 {[%emt 0:00:25]} 8. Qb3 {[%emt 0:02:28]} Nh6 {[%emt 0:02:31]} 9. Ne4 {[%emt 0:13:15]} O-O {[%emt 0:00:25]} 10. Nxd4 {[%emt 0:01:46]} Nd7 {[%emt 0:07:17]} 11. O-O {[%emt 0:04:47]} Ne5 {[%emt 0:11:23]} 12. Be2 {[%emt 0:20:18.10]} Nf5 {[%emt 0:03:16]} 13. Nxf5 {[%emt 0:00:58]} Bxf5 {[%emt 0:00:30]} 14. Ng3 {[%emt 0:00:12]} Bc8 {[%emt 0:00:24]} 15. f4 {[%emt 0:05:46]} Nd7 {[%emt 0:06:01.10]} 16. Be3 {[%emt 0:01:38]} Qc7 {[%emt 0:01:40]} 17. Bf3 {[%emt 0:02:25]} Nf6 {[%emt 0:01:08]} 18. Bd4 {[%emt 0:02:39]} Ne8 {[%emt 0:05:37]} 19. Rad1 {[%emt 0:03:38]} Nd6 {[%emt 0:00:51]} 20. Bxg7 {[%emt 0:02:51]} Kxg7 {[%emt 0:02:55]} 21. Qd5 {[%emt 0:00:37]} Kg8 {[%emt 0:04:05]} 22. Qe5 {[%emt 0:08:24]} Be6 {[%emt 0:17:39]} 23. b3 {[%emt 0:01:08]} Rac8 {[%emt 0:03:12]} 24. c4 {[%emt 0:02:08]} b5 {[%emt 0:00:26]} 25. cxb5 {[%emt 0:02:10]} Qb6+ {[%emt 0:00:09]} 26. Kh1 {[%emt 0:02:15]} Qxb5 {[%emt 0:00:33]} 27. Bd5 {[%emt 0:06:03]} Rc5 {[%emt 0:03:58]} 28. a4 {[%emt 0:03:22]} Qa5 {[%emt 0:00:08]} 29. b4 {[%emt 0:01:38]} Qxb4 {[%emt 0:00:06]} 30. Rd4 {[%emt 0:01:10]} Qa5 {[%emt 0:05:46]} 31. Rfd1 {[%emt 0:00:23]} Bxd5 {[%emt 0:08:41]} 32. Rxd5 {[%emt 0:00:32]} Qxa4 {[%emt 0:00:10]} 33. Re1 {[%emt 0:03:20]} Rxd5 {[%emt 0:01:03]} 34. Qxd5 {[%emt 0:00:02]} Qxf4 {[%emt 0:00:15]} 35. Qc5 {[%emt 0:00:27]} Qd2 {[%emt 0:02:02]} 36. Rf1 {[%emt 0:01:32]} a5 {[%emt 0:00:34]} 37. Qe5 {[%emt 0:00:23]} Re8 {[%emt 0:02:56]} 38. h4 {[%emt 0:01:09]} a4 {[%emt 0:00:42]} 39. Ra1 {[%emt 0:01:33]} a3 {[%emt 0:00:41]} 40. h5 {[%emt 0:01:37]} Qb2 {[%emt 0:00:16]} 41. Qe1 {[%emt 0:00:25]} a2 {[%emt 0:00:12]} 42. h6 {[%emt 0:00:45]} Ra8 {[%emt 0:00:56]} 43. Kh2 {[%emt 0:00:14]} Qd4 {[%emt 0:00:31]} 44. Qxe7 {[%emt 0:00:50]} Qxa1 {[%emt 0:00:12]} 0-1

[Event "CAN-op"]
[Site "Ottawa CAN"]
[Date "2026.07.12"]
[Round "4.1"]
[White "Golubka, Petro"]
[Black "Jaferian, Koosha"]
[Result "1/2-1/2"]
[ECO "E32"]
[WhiteElo "2355"]
[BlackElo "2249"]
[WhiteFideId "-1"]
[BlackFideId "-1"]
[PlyCount "86"]
[GameId "2332995607158372"]
[EventDate "2026.07.11"]
[EventType "swiss"]
[EventRounds "9"]
[EventCountry "CAN"]
[TimeControl "5400+30"]
[WhiteClock "0:16:01"]
[BlackClock "0:18:46"]

1. d4 {[%emt 0:05:58.94]} Nf6 {[%emt 0:00:09.94]} 2. c4 {[%emt 0:00:15]} e6 {[%emt 0:00:08]} 3. Nc3 {[%emt 0:00:14]} Bb4 {[%emt 0:00:07]} 4. Qc2 {[%emt 0:00:12]} O-O {[%emt 0:00:09]} 5. e4 {[%emt 0:00:21]} d5 {[%emt 0:00:07]} 6. e5 {[%emt 0:00:24]} Ne4 {[%emt 0:00:06]} 7. Bd3 {[%emt 0:00:23]} c5 {[%emt 0:00:06]} 8. Nf3 {[%emt 0:00:38]} cxd4 {[%emt 0:00:26]} 9. Nxd4 {[%emt 0:00:11]} Nd7 {[%emt 0:00:09]} 10. Bf4 {[%emt 0:03:55]} Qh4 {[%emt 0:00:07]} 11. g3 {[%emt 0:00:08]} Qh5 {[%emt 0:00:29]} 12. O-O {[%emt 0:00:29]} Bxc3 {[%emt 0:05:50]} 13. bxc3 {[%emt 0:00:14]} g5 {[%emt 0:04:35]} 14. cxd5 {[%emt 0:02:08]} exd5 {[%emt 0:03:51]} 15. Be3 {[%emt 0:02:46]} Nxe5 {[%emt 0:01:14]} 16. f3 {[%emt 0:00:16]} Nxd3 {[%emt 0:01:53]} 17. Qxd3 {[%emt 0:00:18]} Nc5 {[%emt 0:01:40]} 18. Qd2 {[%emt 0:04:18]} Qg6 {[%emt 0:25:57.10]} 19. Bxg5 {[%emt 0:02:06]} Ne6 {[%emt 0:00:18]} 20. Bh6 {[%emt 0:05:22]} Rd8 {[%emt 0:02:50]} 21. Rfe1 {[%emt 0:06:38]} Nxd4 {[%emt 0:08:36]} 22. cxd4 {[%emt 0:00:16]} Bf5 {[%emt 0:00:11]} 23. g4 {[%emt 0:00:25]} Re8 {[%emt 0:01:57]} 24. h4 {[%emt 0:02:51]} Bd7 {[%emt 0:01:53]} 25. Re5 {[%emt 0:03:58.10]} f6 {[%emt 0:06:41]} 26. Rxd5 {[%emt 0:01:16]} Qf7 {[%emt 0:01:11]} 27. Rd6 {[%emt 0:04:22]} Re6 {[%emt 0:02:12]} 28. Rxe6 {[%emt 0:00:28]} Bxe6 {[%emt 0:00:09]} 29. Rc1 {[%emt 0:02:39]} Bxa2 {[%emt 0:03:50]} 30. Qf4 {[%emt 0:01:47]} Re8 {[%emt 0:01:16]} 31. Kf2 {[%emt 0:08:54]} Bd5 {[%emt 0:01:41]} 32. h5 {[%emt 0:05:46]} Qe7 {[%emt 0:01:58]} 33. Kg3 {[%emt 0:03:35]} Bc6 {[%emt 0:02:02]} 34. Rg1 {[%emt 0:06:19]} Rd8 {[%emt 0:02:36]} 35. g5 {[%emt 0:00:48]} Qd6 {[%emt 0:00:45]} 36. gxf6 {[%emt 0:05:25]} Kf7 {[%emt 0:00:47]} 37. Kf2 {[%emt 0:02:35]} Qxd4+ {[%emt 0:01:46]} 38. Qxd4 {[%emt 0:00:15]} Rxd4 {[%emt 0:00:05]} 39. Rg7+ {[%emt 0:01:26]} Kxf6 {[%emt 0:00:11]} 40. Rxh7 {[%emt 0:00:04]} Rd7 {[%emt 0:01:02]} 41. Rh8 {[%emt 0:02:02]} a5 {[%emt 0:01:19]} 42. Rf8+ {[%emt 0:01:50]} Rf7 {[%emt 0:00:21]} 43. Rxf7+ {[%emt 0:01:43]} Ke5 {[%emt 0:00:33]} 1/2-1/2

[Event "CAN-op"]
[Site "Ottawa CAN"]
[Date "2026.07.12"]
[Round "4.2"]
[White "Plotkin, Victor"]
[Black "Stefansson, Vignir Vatnar"]
[Result "1/2-1/2"]
[ECO "B22"]
[WhiteElo "2279"]
[BlackElo "2540"]
[WhiteFideId "-1"]
[BlackFideId "-1"]
[PlyCount "119"]
[GameId "2332995607166565"]
[EventDate "2026.07.11"]
[EventType "swiss"]
[EventRounds "9"]
[EventCountry "CAN"]
[TimeControl "5400+30"]
[WhiteClock "0:07:52"]
[BlackClock "0:37:37"]

1. e4 {[%emt 0:00:01.94]} c5 {[%emt 0:12:07.94]} 2. c3 {[%emt 0:00:05]} Nf6 {[%emt 0:00:19]} 3. e5 {[%emt 0:00:09]} Nd5 {[%emt 0:00:05]} 4. d4 {[%emt 0:00:05]} cxd4 {[%emt 0:00:05]} 5. Nf3 {[%emt 0:00:14]} d6 {[%emt 0:00:06]} 6. Bc4 {[%emt 0:03:13]} dxe5 {[%emt 0:00:25]} 7. Nxe5 {[%emt 0:00:20]} e6 {[%emt 0:00:05]} 8. Bb5+ {[%emt 0:07:02]} Nd7 {[%emt 0:05:02]} 9. Qxd4 {[%emt 0:03:38]} a6 {[%emt 0:04:57]} 10. Bxd7+ {[%emt 0:01:56]} Bxd7 {[%emt 0:00:05]} 11. Nxd7 {[%emt 0:01:12]} Qxd7 {[%emt 0:00:06]} 12. O-O {[%emt 0:00:56]} Nf6 {[%emt 0:00:14]} 13. Qxd7+ {[%emt 0:00:54]} Nxd7 {[%emt 0:00:06]} 14. Nd2 {[%emt 0:01:49]} Ne5 {[%emt 0:04:10]} 15. Ne4 {[%emt 0:01:44]} O-O-O {[%emt 0:03:22]} 16. b3 {[%emt 0:07:31]} h6 {[%emt 0:01:24]} 17. f4 {[%emt 0:03:56]} Nd3 {[%emt 0:01:23]} 18. Be3 {[%emt 0:03:32]} f5 {[%emt 0:02:34]} 19. Nf2 {[%emt 0:00:43]} Bc5 {[%emt 0:00:07]} 20. Bxc5 {[%emt 0:00:35]} Nxc5 {[%emt 0:00:04]} 21. Rfd1 {[%emt 0:01:31.10]} g5 {[%emt 0:00:28]} 22. g3 {[%emt 0:01:37]} Kc7 {[%emt 0:08:47.10]} 23. Kf1 {[%emt 0:02:50]} Rhg8 {[%emt 0:01:44]} 24. Rxd8 {[%emt 0:02:37]} Rxd8 {[%emt 0:01:07]} 25. Ke2 {[%emt 0:00:32]} Kc6 {[%emt 0:03:13]} 26. h4 {[%emt 0:02:16]} g4 {[%emt 0:02:07]} 27. b4 {[%emt 0:02:30]} Na4 {[%emt 0:01:25]} 28. Rc1 {[%emt 0:03:21]} Nb2 {[%emt 0:00:26]} 29. Rc2 {[%emt 0:08:38]} Nc4 {[%emt 0:00:06]} 30. Nd3 {[%emt 0:00:38]} b6 {[%emt 0:00:06]} 31. a4 {[%emt 0:02:03]} Nd6 {[%emt 0:01:25]} 32. Ne5+ {[%emt 0:04:10]} Kc7 {[%emt 0:00:12]} 33. Ke3 {[%emt 0:05:00]} h5 {[%emt 0:01:59]} 34. c4 {[%emt 0:00:18]} Ne4 {[%emt 0:00:12]} 35. c5 {[%emt 0:01:47]} bxc5 {[%emt 0:00:10]} 36. Nd3 {[%emt 0:00:46]} Kb6 {[%emt 0:05:20]} 37. Nxc5 {[%emt 0:03:01]} Nxg3 {[%emt 0:00:07]} 38. Kf2 {[%emt 0:08:11]} Ne4+ {[%emt 0:00:22]} 39. Nxe4 {[%emt 0:00:17]} fxe4 {[%emt 0:00:04]} 40. Rc4 {[%emt 0:01:34]} Rd2+ {[%emt 0:01:10]} 41. Ke3 {[%emt 0:00:46]} Rd3+ {[%emt 0:02:12]} 42. Ke2 {[%emt 0:05:07]} Rh3 {[%emt 0:00:37]} 43. Rxe4 {[%emt 0:00:06]} Rxh4 {[%emt 0:00:02]} 44. Rxe6+ {[%emt 0:00:08]} Kb7 {[%emt 0:00:02]} 45. f5 {[%emt 0:01:29]} g3 {[%emt 0:01:35]} 46. Rg6 {[%emt 0:00:33]} Rh2+ {[%emt 0:00:03]} 47. Ke3 {[%emt 0:02:16]} h4 {[%emt 0:01:12]} 48. f6 {[%emt 0:04:13]} Rf2 {[%emt 0:06:39]} 49. Rg4 {[%emt 0:01:43]} Rf1 {[%emt 0:00:12]} 50. f7 {[%emt 0:00:30]} Rxf7 {[%emt 0:01:18]} 51. Rxh4 {[%emt 0:00:08]} Rg7 {[%emt 0:00:02]} 52. Rh1 {[%emt 0:00:09]} Rg4 {[%emt 0:00:02]} 53. Rg1 {[%emt 0:01:04]} Rxb4 {[%emt 0:00:18]} 54. Rxg3 {[%emt 0:00:22]} Rb3+ {[%emt 0:00:36]} 55. Kf2 {[%emt 0:00:06]} Rxg3 {[%emt 0:00:05]} 56. Kxg3 {[%emt 0:00:08]} Kb6 {[%emt 0:00:01]} 57. Kf2 {[%emt 0:00:16]} Ka5 {[%emt 0:00:03]} 58. Ke3 {[%emt 0:00:10]} Kxa4 {[%emt 0:00:03]} 59. Kd2 {[%emt 0:00:06]} Kb3 {[%emt 0:00:04]} 60. Kc1 {[%emt 0:00:05]} 1/2-1/2

[Event "CAN-op"]
[Site "Ottawa CAN"]
[Date "2026.07.12"]
[Round "4.3"]
[White "Rodrigue-Lemieux, Shawn"]
[Black "Samsonkin, Artiom"]
[Result "1/2-1/2"]
[ECO "E45"]
[WhiteElo "2534"]
[BlackElo "2361"]
[WhiteFideId "-1"]
[BlackFideId "-1"]
[PlyCount "28"]
[GameId "2332995607166566"]
[EventDate "2026.07.11"]
[EventType "swiss"]
[EventRounds "9"]
[EventCountry "CAN"]
[TimeControl "5400+30"]
[WhiteClock "0:54:04"]
[BlackClock "0:35:08"]

1. d4 {[%emt 0:00:00.94]} e6 {[%emt 0:03:38.94]} 2. c4 {[%emt 0:00:39]} Nf6 {[%emt 0:00:15]} 3. Nc3 {[%emt 0:00:31]} Bb4 {[%emt 0:00:17]} 4. e3 {[%emt 0:00:10]} b6 {[%emt 0:01:37]} 5. Nge2 {[%emt 0:01:41]} Ba6 {[%emt 0:01:00]} 6. a3 {[%emt 0:00:12]} Bxc3+ {[%emt 0:00:04]} 7. Nxc3 {[%emt 0:00:10]} d5 {[%emt 0:00:15]} 8. Qf3 {[%emt 0:01:38]} O-O {[%emt 0:01:21]} 9. g4 {[%emt 0:01:04]} Bb7 {[%emt 0:12:28]} 10. g5 {[%emt 0:17:03]} Ne4 {[%emt 0:00:16]} 11. Nxe4 {[%emt 0:06:23]} dxe4 {[%emt 0:00:05]} 12. Qf4 {[%emt 0:02:30]} Nd7 {[%emt 0:00:56]} 13. Bd2 {[%emt 0:04:13]} c5 {[%emt 0:34:42.10]} 14. dxc5 {[%emt 0:07:11.10]} e5 {[%emt 0:05:27]} 1/2-1/2

[Event "CAN-op"]
[Site "Ottawa CAN"]
[Date "2026.07.12"]
[Round "4.5"]
[White "Preotu, Razvan"]
[Black "Chiku-Ratte, Olivier-Kenta"]
[Result "1/2-1/2"]
[ECO "C42"]
[WhiteElo "2482"]
[BlackElo "2354"]
[WhiteFideId "-1"]
[BlackFideId "-1"]
[PlyCount "59"]
[GameId "2332995607174761"]
[EventDate "2026.07.11"]
[EventType "swiss"]
[EventRounds "9"]
[EventCountry "CAN"]
[TimeControl "5400+30"]
[WhiteClock "0:07:00"]
[BlackClock "0:01:02"]

1. e4 {[%emt 0:10:32.94]} e5 {[%emt 0:01:26.94]} 2. Nf3 {[%emt 0:00:12]} Nf6 {[%emt 0:01:05]} 3. Nxe5 {[%emt 0:00:56]} d6 {[%emt 0:00:05]} 4. Nf3 {[%emt 0:00:10]} Nxe4 {[%emt 0:00:05]} 5. Nc3 {[%emt 0:02:22]} Nxc3 {[%emt 0:04:36]} 6. dxc3 {[%emt 0:00:08]} Be7 {[%emt 0:00:17]} 7. Bf4 {[%emt 0:00:30]} O-O {[%emt 0:03:36]} 8. Qd2 {[%emt 0:00:05]} Nd7 {[%emt 0:03:22]} 9. O-O-O {[%emt 0:04:16]} Nc5 {[%emt 0:00:58]} 10. Bc4 {[%emt 0:02:12]} Be6 {[%emt 0:01:26]} 11. Bxe6 {[%emt 0:00:21]} Nxe6 {[%emt 0:01:24]} 12. Be3 {[%emt 0:09:28]} Qd7 {[%emt 0:06:23]} 13. h4 {[%emt 0:04:34]} Qb5 {[%emt 0:19:39.10]} 14. Ng5 {[%emt 0:11:28.10]} a5 {[%emt 0:09:29]} 15. f4 {[%emt 0:03:18]} a4 {[%emt 0:19:21]} 16. g4 {[%emt 0:00:25]} Qc4 {[%emt 0:00:24]} 17. Kb1 {[%emt 0:00:19]} Bf6 {[%emt 0:01:10]} 18. a3 {[%emt 0:23:42]} Rfe8 {[%emt 0:09:38]} 19. Rhe1 {[%emt 0:01:13]} b6 {[%emt 0:07:58]} 20. Nf3 {[%emt 0:05:11]} Qc6 {[%emt 0:00:47]} 21. Qg2 {[%emt 0:06:54]} Ra5 {[%emt 0:03:42]} 22. Bd2 {[%emt 0:00:39]} Rb5 {[%emt 0:03:03]} 23. Qe2 {[%emt 0:00:20]} g6 {[%emt 0:00:31]} 24. Nd4 {[%emt 0:02:25]} Bxd4 {[%emt 0:00:24]} 25. cxd4 {[%emt 0:00:01]} Qxc2+ {[%emt 0:00:50]} 26. Kxc2 {[%emt 0:00:15]} Nxd4+ {[%emt 0:00:01]} 27. Kd3 {[%emt 0:04:02]} Nxe2 {[%emt 0:00:19]} 28. Rxe2 {[%emt 0:00:14]} Rd5+ {[%emt 0:01:48]} 29. Kc4 {[%emt 0:02:12]} Rc5+ {[%emt 0:00:10]} 30. Kd3 {[%emt 0:00:05]} 1/2-1/2